Workbook

Sheet 1
A1: Школа | B1: МБОУ СОШ с.Старобурново | E1: Отд./корп | F1: 1-4 кл | I1: День | J1: 2025-12-16
A4: Неделя | B4: День недели | C4: Прием пищи | D4: Раздел меню | E4: Блюда | F4: Вес блюда, г | G4: Белки | H4: Жиры | I4: Углеводы | J4: Калорийность | K4: № рецептуры | L4: Цена
A5: 2 | B5: 2 | C5: Завтрак | D5: гор.блюдо | E5: Котлеты из говядины в томатном соусе. Пюре картофельное | F5: 255 | G5: 11.5 | H5: 10.52 | I5: 30.22 | J5: 265.8 | K5: 104 | L5: 71.09
D7: гор.напиток | E7: Чай с лимоном и сахаром | F7: 210 | G7: 0.2 | H7: 0.03 | I7: 9.3 | J7: 38 | K7: 300
D8: хлеб | E8: Хлеб пшеничный витаминизированный | F8: 45 | G8: 3.37 | H8: 0.45 | I8: 21.6 | J8: 103.95 | K8: 5
D9: фрукты
D12: итого | F12: =SUM(F5:F11) -> 510 | G12: =SUM(G5:G11) -> 15.07 | H12: =SUM(H5:H11) -> 11 | I12: =SUM(I5:I11) -> 61.12 | J12: =SUM(J5:J11) -> 407.75 | L12: =SUM(L5:L11) -> 71.09
A13: =A5 -> 2 | B13: =B5 -> 2 | C13: Обед | D13: закуска | E13: Салат Витаминный | F13: 60 | G13: 0.98 | H13: 2.7 | I13: 6.67 | J13: 56 | K13: 24 | L13: 79.73
D14: 1 блюдо | E14: Борщ с капустой и картофелем со сметаной | F14: 255 | G14: 1.75 | H14: 5.12 | I14: 11.75 | J14: 98.75 | K14: 60
D15: 2 блюдо | E15: Плов из куриного филе | F15: 150 | G15: 15.75 | H15: 20.25 | I15: 26.85 | J15: 473 | K15: 140
D16: гарнир
D17: напиток | E17: Компот из смеси сухофруктов | F17: 200 | G17: 0.9 | H17: 0.05 | I17: 20.6 | J17: 89 | K17: 309
D18: хлеб бел.
D19: хлеб черн. | E19: Хлеб ржано-пшеничный | F19: 45 | G19: 3.1 | H19: 0.54 | I19: 19.44 | J19: 96.3 | K19: 6
D22: итого | F22: =SUM(F13:F21) -> 710 | G22: =SUM(G13:G21) -> 22.48 | H22: =SUM(H13:H21) -> 28.66 | I22: =SUM(I13:I21) -> 85.31 | J22: =SUM(J13:J21) -> 813.05 | L22: =SUM(L13:L21) -> 79.73
A23: =A5 -> 2 | B23: =B5 -> 2 | C23: Итого за день: | F23: =F12+F22 -> 1220 | G23: =G12+G22 -> 37.55 | H23: 39.66 | I23: 146.43 | J23: 1220.8 | L23: 150.82
